{"text_format":"3","workbook":"xlsx","n_sheets":6,"sheets":["Panel","Ventas","Ingresos","Gastos","Impuestos","Categorías"],"not_rendered":{"defined_names":34},"read":"whole","date_system":"1900"}

{"sheet":"Panel","index":0,"n_rows":22,"n_cols":9,"rows_kept":22,"merged":[[5,2,5,8]]}
[]
[]
[null,null,"BALANCE DE PÉRDIDAS Y GANANCIAS",{"$nulls":4},"Margen bruto actual [L/J]","Para el mes que finaliza el 31/8"]
[null,null,"CELULAR SATCOM",{"$nulls":4},"Rentabilidad de ventas actual [T/J]","Expresado en millares"]
[]
[null,null,"No modifique las categorías de esta hoja de cálculo porque podrían producirse errores de fórmulas. Use la hoja de cálculo Categorías para agregar categorías y actualice las hojas de cálculo correspondientes con entradas. Esta hoja de cálculo se actualizará automáticamente."]
[]
[null,null,"Resumen","Total período anterior","Total presupuesto","Total período actual","Total actual período como % de ventas","% de cambio total del período anterior","% de cambio total del presupuesto"]
[null,null,"Total de ingresos por ventas [J]",{"$f":"SUMIFS(IngresosPorVentas[Antes período],IngresosPorVentas[Tipo de ingreso],\"Ingresos por ventas\")","v":{"v":100,"d":"100.00 €"}},{"$f":"SUMIFS(IngresosPorVentas[Presupuesto],IngresosPorVentas[Tipo de ingreso],\"Ingresos por ventas\")","v":{"v":101,"d":"101.00 €"}},{"$f":"SUMIFS(IngresosPorVentas[Actual período],IngresosPorVentas[Tipo de ingreso],\"Ingresos por ventas\")","v":{"v":100,"d":"100.00 €"}},{"$f":"SUMIFS(IngresosPorVentas[Período actual como % de ventas],IngresosPorVentas[Tipo de ingreso],\"Ingresos por ventas\")","v":{"v":1,"d":"100.00%"}},{"$f":"SUMIFS(IngresosPorVentas[Porcentaje de cambio desde período anterior],IngresosPorVentas[Tipo de ingreso],\"Ingresos por ventas\")","v":{"v":-1.1102230246251565E-16,"d":"-0.00%"}},{"$f":"SUMIFS(IngresosPorVentas[% de cambio del presupuesto],IngresosPorVentas[Tipo de ingreso],\"Ingresos por ventas\")","v":{"v":3.95,"d":"395.00%"}}]
[null,null,"Costo total de ventas [K]",{"$f":"SUMIFS(IngresosPorVentas[Antes período],IngresosPorVentas[Tipo de ingreso],\"Costo de ventas\")","v":{"v":-25,"d":"-25.00 €"}},{"$f":"SUMIFS(IngresosPorVentas[Presupuesto],IngresosPorVentas[Tipo de ingreso],\"Costo de ventas\")","v":{"v":-50,"d":"-50.00 €"}},{"$f":"SUMIFS(IngresosPorVentas[Actual período],IngresosPorVentas[Tipo de ingreso],\"Costo de ventas\")","v":{"v":-55,"d":"-55.00 €"}},{"$f":"SUMIFS(IngresosPorVentas[Período actual como % de ventas],IngresosPorVentas[Tipo de ingreso],\"Costo de ventas\")","v":{"v":-0.55,"d":"-55.00%"}},{"$f":"SUMIFS(IngresosPorVentas[Porcentaje de cambio desde período anterior],IngresosPorVentas[Tipo de ingreso],\"Costo de ventas\")","v":{"v":-1.2000000000000002,"d":"-120.00%"}},{"$f":"SUMIFS(IngresosPorVentas[% de cambio del presupuesto],IngresosPorVentas[Tipo de ingreso],\"Costo de ventas\")","v":{"v":-0.10000000000000009,"d":"-10.00%"}}]
[null,null,"Total de ventas y gastos de marketing [M]",{"$f":"SUMIFS(GastosOperativos[Antes período],GastosOperativos[Tipo de gasto],\"Ventas y marketing\")","v":{"v":30,"d":"30.00 €"}},{"$f":"SUMIFS(GastosOperativos[Presupuesto],GastosOperativos[Tipo de gasto],\"Ventas y marketing\")","v":{"v":35,"d":"35.00 €"}},{"$f":"SUMIFS(GastosOperativos[Actual período],GastosOperativos[Tipo de gasto],\"Ventas y marketing\")","v":{"v":45,"d":"45.00 €"}},{"$f":"SUMIFS(GastosOperativos[Período actual como % de ventas],GastosOperativos[Tipo de gasto],\"Ventas y marketing\")","v":{"v":0.45,"d":"45.00%"}},{"$f":"SUMIFS(GastosOperativos[Porcentaje de cambio desde período anterior],GastosOperativos[Tipo de gasto],\"Ventas y marketing\")","v":{"v":0.5,"d":"50.00%"}},{"$f":"SUMIFS(GastosOperativos[% de cambio del presupuesto],GastosOperativos[Tipo de gasto],\"Ventas y marketing\")","v":{"v":0.2857142857142858,"d":"28.57%"}}]
[null,null,"Total de gastos en investigación y desarrollo [N]",{"$f":"SUMIFS(GastosOperativos[Antes período],GastosOperativos[Tipo de gasto],\"Investigación y desarrollo\")","v":{"v":0,"d":"0.00 €"}},{"$f":"SUMIFS(GastosOperativos[Presupuesto],GastosOperativos[Tipo de gasto],\"Investigación y desarrollo\")","v":{"v":0,"d":"0.00 €"}},{"$f":"SUMIFS(GastosOperativos[Actual período],GastosOperativos[Tipo de gasto],\"Investigación y desarrollo\")","v":{"v":0,"d":"0.00 €"}},{"$f":"SUMIFS(GastosOperativos[Período actual como % de ventas],GastosOperativos[Tipo de gasto],\"Investigación y desarrollo\")","v":{"v":0,"d":"0.00%"}},{"$f":"SUMIFS(GastosOperativos[Porcentaje de cambio desde período anterior],GastosOperativos[Tipo de gasto],\"Investigación y desarrollo\")","v":{"v":0,"d":"0.00%"}},{"$f":"SUMIFS(GastosOperativos[% de cambio del presupuesto],GastosOperativos[Tipo de gasto],\"Investigación y desarrollo\")","v":{"v":0,"d":"0.00%"}}]
[null,null,"Total de gastos generales y administrativos [O]",{"$f":"SUMIFS(GastosOperativos[Antes período],GastosOperativos[Tipo de gasto],\"Generales y administrativos\")","v":{"v":0,"d":"0.00 €"}},{"$f":"SUMIFS(GastosOperativos[Presupuesto],GastosOperativos[Tipo de gasto],\"Generales y administrativos\")","v":{"v":0,"d":"0.00 €"}},{"$f":"SUMIFS(GastosOperativos[Actual período],GastosOperativos[Tipo de gasto],\"Generales y administrativos\")","v":{"v":0,"d":"0.00 €"}},{"$f":"SUMIFS(GastosOperativos[Período actual como % de ventas],GastosOperativos[Tipo de gasto],\"Generales y administrativos\")","v":{"v":0,"d":"0.00%"}},{"$f":"SUMIFS(GastosOperativos[Porcentaje de cambio desde período anterior],GastosOperativos[Tipo de gasto],\"Generales y administrativos\")","v":{"v":0,"d":"0.00%"}},{"$f":"SUMIFS(GastosOperativos[% de cambio del presupuesto],GastosOperativos[Tipo de gasto],\"Generales y administrativos\")","v":{"v":0,"d":"0.00%"}}]
[null,null,"Total de otros gastos operativos [P]",{"$f":"GastosOperativos[[#Totals],[Antes período]]-SUM(D11:D13)","v":{"v":0,"d":"0.00 €"}},{"$f":"GastosOperativos[[#Totals],[Presupuesto]]-SUM(E11:E13)","v":{"v":0,"d":"0.00 €"}},{"$f":"GastosOperativos[[#Totals],[Actual período]]-SUM(F11:F13)","v":{"v":0,"d":"0.00 €"}},{"$f":"GastosOperativos[[#Totals],[Período actual como % de ventas]]-SUM(G11:G13)","v":{"v":0,"d":"0.00%"}},{"$f":"GastosOperativos[[#Totals],[Porcentaje de cambio desde período anterior]]-SUM(H11:H13)","v":{"v":0,"d":"0.00%"}},{"$f":"GastosOperativos[[#Totals],[% de cambio del presupuesto]]-SUM(I11:I13)","v":{"v":0,"d":"0.00%"}}]
[null,null,"Otros ingresos [S]",{"$f":"Ingresos[[#Totals],[Antes período]]","v":{"v":50,"d":"50.00 €"}},{"$f":"Ingresos[[#Totals],[Presupuesto]]","v":{"v":60,"d":"60.00 €"}},{"$f":"Ingresos[[#Totals],[Actual período]]","v":{"v":62,"d":"62.00 €"}},{"$f":"Ingresos[[#Totals],[Período actual como % de ventas]]","v":{"v":0.62,"d":"62.00%"}},{"$f":"Ingresos[[#Totals],[Porcentaje de cambio desde período anterior]]","v":{"v":0.24,"d":"24.00%"}},{"$f":"Ingresos[[#Totals],[% de cambio del presupuesto]]","v":{"v":0.03333333333333344,"d":"3.33%"}}]
[null,null,"Total de impuestos [T]",{"$f":"Impuestos[[#Totals],[Antes período]]","v":{"v":10,"d":"10.00 €"}},{"$f":"Impuestos[[#Totals],[Presupuesto]]","v":{"v":12,"d":"12.00 €"}},{"$f":"Impuestos[[#Totals],[Actual período]]","v":{"v":12,"d":"12.00 €"}},{"$f":"Impuestos[[#Totals],[Período actual como % de ventas]]","v":{"v":0.12,"d":"12.00%"}},{"$f":"Impuestos[[#Totals],[Porcentaje de cambio desde el período anterior]]","v":{"v":0.19999999999999996,"d":"20.00%"}},{"$f":"Impuestos[[#Totals],[% de cambio del presupuesto]]","v":{"v":0,"d":"0.00%"}}]
[]
[null,null,"Resumen","Total\nperíodo anterior","Total\npresupuesto","Total\nperíodo actual","Total actual\nperíodo como % de ventas","% de cambio total\ndel período anterior","% de cambio total\ndel presupuesto"]
[null,null,"Ganancia bruta [L=J-K]",{"$f":"IFERROR(D9-D10,\"-\")","v":{"v":125,"d":"125.00 €"}},{"$f":"IFERROR(E9-E10,\"-\")","v":{"v":151,"d":"151.00 €"}},{"$f":"IFERROR(Total_de_ingresos_por_ventas-Costo_de_ventas_total,\"-\")","v":{"v":155,"d":"155.00 €"}},{"$f":"IFERROR(IF(Total_de_ingresos_por_ventas=0,\"0.00%\",Total_de_ganacia_bruta/Total_de_ingresos_por_ventas),\"-\")","v":{"v":1.55,"d":"155.00%"}},{"$f":"IFERROR(IF(D19=Total_de_ganacia_bruta,0,IF(Total_de_ganacia_bruta>D19,ABS((Total_de_ganacia_bruta/D19)-1),IF(AND(Total_de_ganacia_bruta<D19,D19<0),-((Total_de_ganacia_bruta/D19)-1),(Total_de_ganacia_bruta/D19)-1))),\"-\")","v":{"v":0.24,"d":"24.00%"}},{"$f":"IFERROR(IF(E19=Total_de_ganacia_bruta,0,IF(Total_de_ganacia_bruta>E19,ABS((Total_de_ganacia_bruta/E19)-1),IF(AND(Total_de_ganacia_bruta<E19,E19<0),-((Total_de_ganacia_bruta/E19)-1),(Total_de_ganacia_bruta/E19)-1))),\"-\")","v":{"v":0.026490066225165476,"d":"2.65%"}}]
[null,null,"Total de gastos operativos [Q=M+N+O+P]",{"$f":"IFERROR(D11+D12+D13+D14,\"-\")","v":{"v":30,"d":"30.00 €"}},{"$f":"IFERROR(E11+E12+E13+E14,\"-\")","v":{"v":35,"d":"35.00 €"}},{"$f":"IFERROR(Total_de_ventas_y_marketing+Total_de_investigación_y_desarrollo+Total_general_y_administrativo+Total_de_otros_gastos,\"-\")","v":{"v":45,"d":"45.00 €"}},{"$f":"IFERROR(IF(Total_de_ingresos_por_ventas=0,\"0.00%\",Total_de_gastos_operativos/Total_de_ingresos_por_ventas),\"-\")","v":{"v":0.45,"d":"45.00%"}},{"$f":"IFERROR(IF(D20=Total_de_gastos_operativos,0,IF(Total_de_gastos_operativos>D20,ABS((Total_de_gastos_operativos/D20)-1),IF(AND(Total_de_gastos_operativos<D20,D20<0),-((Total_de_gastos_operativos/D20)-1),(Total_de_gastos_operativos/D20)-1))),\"-\")","v":{"v":0.5,"d":"50.00%"}},{"$f":"IFERROR(IF(E20=Total_de_gastos_operativos,0,IF(Total_de_gastos_operativos>E20,ABS((Total_de_gastos_operativos/E20)-1),IF(AND(Total_de_gastos_operativos<E20,E20<0),-((Total_de_gastos_operativos/E20)-1),(Total_de_gastos_operativos/E20)-1))),\"-\")","v":{"v":0.2857142857142858,"d":"28.57%"}}]
[null,null,"Ingresos de operaciones [R=L-Q]",{"$f":"IFERROR(D19-D20,\"-\")","v":{"v":95,"d":"95.00 €"}},{"$f":"IFERROR(E19-E20,\"-\")","v":{"v":116,"d":"116.00 €"}},{"$f":"IFERROR(Total_de_ganacia_bruta-Total_de_gastos_operativos,\"-\")","v":{"v":110,"d":"110.00 €"}},{"$f":"IFERROR(IF(Total_de_ingresos_por_ventas=0,\"0.00%\",Total_de_ingresos_por_operaciones/Total_de_ingresos_por_ventas),\"-\")","v":{"v":1.1,"d":"110.00%"}},{"$f":"IFERROR(IF(D21=Total_de_ingresos_por_operaciones,0,IF(Total_de_ingresos_por_operaciones>D21,ABS((Total_de_ingresos_por_operaciones/D21)-1),IF(AND(Total_de_ingresos_por_operaciones<D21,D21<0),-((Total_de_ingresos_por_operaciones/D21)-1),(Total_de_ingresos_por_operaciones/D21)-1))),\"-\")","v":{"v":0.1578947368421053,"d":"15.79%"}},{"$f":"IFERROR(IF(E21=Total_de_ingresos_por_operaciones,0,IF(Total_de_ingresos_por_operaciones>E21,ABS((Total_de_ingresos_por_operaciones/E21)-1),IF(AND(Total_de_ingresos_por_operaciones<E21,E21<0),-((Total_de_ingresos_por_operaciones/E21)-1),(Total_de_ingresos_por_operaciones/E21)-1))),\"-\")","v":{"v":-0.051724137931034475,"d":"-5.17%"}}]
[null,null,"Ganancia neta [U=R+S-T]",{"$f":"IFERROR(D21+D15-D16,\"-\")","v":{"v":135,"d":"135.00 €"}},{"$f":"IFERROR(E21+E15-E16,\"-\")","v":{"v":164,"d":"164.00 €"}},{"$f":"Total_de_ingresos_por_operaciones+Total_de_otros_ingresos-Total_de_impuestos","v":{"v":160,"d":"160.00 €"}},{"$f":"IFERROR(IF(Total_de_ingresos_por_ventas=0,\"0.00%\",Beneficios_netos/Total_de_ingresos_por_ventas),\"-\")","v":{"v":1.6,"d":"160.00%"}},{"$f":"IFERROR(IF(D22=Beneficios_netos,0,IF(Beneficios_netos>D22,ABS((Beneficios_netos/D22)-1),IF(AND(Beneficios_netos<D22,D22<0),-((Beneficios_netos/D22)-1),(Beneficios_netos/D22)-1))),\"-\")","v":{"v":0.18518518518518512,"d":"18.52%"}},{"$f":"IFERROR(IF(E22=Beneficios_netos,0,IF(Beneficios_netos>E22,ABS((Beneficios_netos/E22)-1),IF(AND(Beneficios_netos<E22,E22<0),-((Beneficios_netos/E22)-1),(Beneficios_netos/E22)-1))),\"-\")","v":{"v":-0.024390243902439046,"d":"-2.44%"}}]

{"sheet":"Ventas","index":1,"n_rows":15,"n_cols":10,"rows_kept":15}
[]
[]
[null,null,{"$f":"Título_Libro","v":"BALANCE DE PÉRDIDAS Y GANANCIAS"},{"$nulls":5},"Ingresos por ventas"]
[null,null,{"$f":"Nombre_de_la_compañía","v":"CELULAR SATCOM"},{"$nulls":5},"Expresado en millares",{"$f":"IFERROR(Ingresos_Por_Ventas,\"-\")","v":{"v":100,"d":"100.00 €"}}]
[]
[null,null,"Tipo de ingreso","Descripción","Antes período","Presupuesto","Actual período","Período actual como % de ventas","Porcentaje de cambio desde período anterior","% de cambio del presupuesto"]
[null,null,"Ingresos por ventas","Producto/servicio 1",{"v":50,"d":"50.00 €"},{"v":1,"d":"1.00 €"},{"v":5,"d":"5.00 €"},{"$f":"IFERROR(IF(IngresosPorVentas[[#Totals],[Actual período]]=0,\"-\",IngresosPorVentas[[#This Row],[Actual período]]/Ingresos_Por_Ventas),\"-\")","v":{"v":0.05,"d":"5.00%"}},{"$f":"IFERROR(IF(IngresosPorVentas[[#This Row],[Antes período]]=IngresosPorVentas[[#This Row],[Actual período]],0,IF(IngresosPorVentas[[#This Row],[Actual período]]>IngresosPorVentas[[#This Row],[Antes período]],ABS((IngresosPorVentas[[#This Row],[Actual período]]/IngresosPorVentas[[#This Row],[Antes período]])-1),IF(AND(IngresosPorVentas[[#This Row],[Actual período]]<IngresosPorVentas[[#This Row],[Antes período]],IngresosPorVentas[[#This Row],[Antes período]]<0),-((IngresosPorVentas[[#This Row],[Actual período]]/IngresosPorVentas[[#This Row],[Antes período]])-1),(IngresosPorVentas[[#This Row],[Actual período]]/IngresosPorVentas[[#This Row],[Antes período]])-1))),\"-\")","v":{"v":-0.9,"d":"-90.00%"}},{"$f":"IFERROR(IF(IngresosPorVentas[[#This Row],[Presupuesto]]=IngresosPorVentas[[#This Row],[Actual período]],0,IF(IngresosPorVentas[[#This Row],[Actual período]]>IngresosPorVentas[[#This Row],[Presupuesto]],ABS((IngresosPorVentas[[#This Row],[Actual período]]/IngresosPorVentas[[#This Row],[Presupuesto]])-1),IF(AND(IngresosPorVentas[[#This Row],[Actual período]]<IngresosPorVentas[[#This Row],[Presupuesto]],IngresosPorVentas[[#This Row],[Presupuesto]]<0),-((IngresosPorVentas[[#This Row],[Actual período]]/IngresosPorVentas[[#This Row],[Presupuesto]])-1),(IngresosPorVentas[[#This Row],[Actual período]]/IngresosPorVentas[[#This Row],[Presupuesto]])-1))),\"-\")","v":{"v":4,"d":"400.00%"}}]
[null,null,"Ingresos por ventas","Producto/servicio 2",{"v":50,"d":"50.00 €"},{"v":100,"d":"100.00 €"},{"v":95,"d":"95.00 €"},{"$f":"IFERROR(IF(IngresosPorVentas[[#Totals],[Actual período]]=0,\"-\",IngresosPorVentas[[#This Row],[Actual período]]/Ingresos_Por_Ventas),\"-\")","v":{"v":0.95,"d":"95.00%"}},{"$f":"IFERROR(IF(IngresosPorVentas[[#This Row],[Antes período]]=IngresosPorVentas[[#This Row],[Actual período]],0,IF(IngresosPorVentas[[#This Row],[Actual período]]>IngresosPorVentas[[#This Row],[Antes período]],ABS((IngresosPorVentas[[#This Row],[Actual período]]/IngresosPorVentas[[#This Row],[Antes período]])-1),IF(AND(IngresosPorVentas[[#This Row],[Actual período]]<IngresosPorVentas[[#This Row],[Antes período]],IngresosPorVentas[[#This Row],[Antes período]]<0),-((IngresosPorVentas[[#This Row],[Actual período]]/IngresosPorVentas[[#This Row],[Antes período]])-1),(IngresosPorVentas[[#This Row],[Actual período]]/IngresosPorVentas[[#This Row],[Antes período]])-1))),\"-\")","v":{"v":0.8999999999999999,"d":"90.00%"}},{"$f":"IFERROR(IF(IngresosPorVentas[[#This Row],[Presupuesto]]=IngresosPorVentas[[#This Row],[Actual período]],0,IF(IngresosPorVentas[[#This Row],[Actual período]]>IngresosPorVentas[[#This Row],[Presupuesto]],ABS((IngresosPorVentas[[#This Row],[Actual período]]/IngresosPorVentas[[#This Row],[Presupuesto]])-1),IF(AND(IngresosPorVentas[[#This Row],[Actual período]]<IngresosPorVentas[[#This Row],[Presupuesto]],IngresosPorVentas[[#This Row],[Presupuesto]]<0),-((IngresosPorVentas[[#This Row],[Actual período]]/IngresosPorVentas[[#This Row],[Presupuesto]])-1),(IngresosPorVentas[[#This Row],[Actual período]]/IngresosPorVentas[[#This Row],[Presupuesto]])-1))),\"-\")","v":{"v":-0.050000000000000044,"d":"-5.00%"}}]
[null,null,"Ingresos por ventas","Producto/servicio 3",{"$nulls":3},{"$f":"IFERROR(IF(IngresosPorVentas[[#Totals],[Actual período]]=0,\"-\",IngresosPorVentas[[#This Row],[Actual período]]/Ingresos_Por_Ventas),\"-\")","v":{"v":0,"d":"0.00%"}},{"$f":"IFERROR(IF(IngresosPorVentas[[#This Row],[Antes período]]=IngresosPorVentas[[#This Row],[Actual período]],0,IF(IngresosPorVentas[[#This Row],[Actual período]]>IngresosPorVentas[[#This Row],[Antes período]],ABS((IngresosPorVentas[[#This Row],[Actual período]]/IngresosPorVentas[[#This Row],[Antes período]])-1),IF(AND(IngresosPorVentas[[#This Row],[Actual período]]<IngresosPorVentas[[#This Row],[Antes período]],IngresosPorVentas[[#This Row],[Antes período]]<0),-((IngresosPorVentas[[#This Row],[Actual período]]/IngresosPorVentas[[#This Row],[Antes período]])-1),(IngresosPorVentas[[#This Row],[Actual período]]/IngresosPorVentas[[#This Row],[Antes período]])-1))),\"-\")","v":{"v":0,"d":"0.00%"}},{"$f":"IFERROR(IF(IngresosPorVentas[[#This Row],[Presupuesto]]=IngresosPorVentas[[#This Row],[Actual período]],0,IF(IngresosPorVentas[[#This Row],[Actual período]]>IngresosPorVentas[[#This Row],[Presupuesto]],ABS((IngresosPorVentas[[#This Row],[Actual período]]/IngresosPorVentas[[#This Row],[Presupuesto]])-1),IF(AND(IngresosPorVentas[[#This Row],[Actual período]]<IngresosPorVentas[[#This Row],[Presupuesto]],IngresosPorVentas[[#This Row],[Presupuesto]]<0),-((IngresosPorVentas[[#This Row],[Actual período]]/IngresosPorVentas[[#This Row],[Presupuesto]])-1),(IngresosPorVentas[[#This Row],[Actual período]]/IngresosPorVentas[[#This Row],[Presupuesto]])-1))),\"-\")","v":{"v":0,"d":"0.00%"}}]
[null,null,"Ingresos por ventas","Producto/servicio 4",{"$nulls":3},{"$f":"IFERROR(IF(IngresosPorVentas[[#Totals],[Actual período]]=0,\"-\",IngresosPorVentas[[#This Row],[Actual período]]/Ingresos_Por_Ventas),\"-\")","v":{"v":0,"d":"0.00%"}},{"$f":"IFERROR(IF(IngresosPorVentas[[#This Row],[Antes período]]=IngresosPorVentas[[#This Row],[Actual período]],0,IF(IngresosPorVentas[[#This Row],[Actual período]]>IngresosPorVentas[[#This Row],[Antes período]],ABS((IngresosPorVentas[[#This Row],[Actual período]]/IngresosPorVentas[[#This Row],[Antes período]])-1),IF(AND(IngresosPorVentas[[#This Row],[Actual período]]<IngresosPorVentas[[#This Row],[Antes período]],IngresosPorVentas[[#This Row],[Antes período]]<0),-((IngresosPorVentas[[#This Row],[Actual período]]/IngresosPorVentas[[#This Row],[Antes período]])-1),(IngresosPorVentas[[#This Row],[Actual período]]/IngresosPorVentas[[#This Row],[Antes período]])-1))),\"-\")","v":{"v":0,"d":"0.00%"}},{"$f":"IFERROR(IF(IngresosPorVentas[[#This Row],[Presupuesto]]=IngresosPorVentas[[#This Row],[Actual período]],0,IF(IngresosPorVentas[[#This Row],[Actual período]]>IngresosPorVentas[[#This Row],[Presupuesto]],ABS((IngresosPorVentas[[#This Row],[Actual período]]/IngresosPorVentas[[#This Row],[Presupuesto]])-1),IF(AND(IngresosPorVentas[[#This Row],[Actual período]]<IngresosPorVentas[[#This Row],[Presupuesto]],IngresosPorVentas[[#This Row],[Presupuesto]]<0),-((IngresosPorVentas[[#This Row],[Actual período]]/IngresosPorVentas[[#This Row],[Presupuesto]])-1),(IngresosPorVentas[[#This Row],[Actual período]]/IngresosPorVentas[[#This Row],[Presupuesto]])-1))),\"-\")","v":{"v":0,"d":"0.00%"}}]
[null,null,"Costo de ventas","Producto/servicio 1",{"v":-25,"d":"-25.00 €"},{"v":-50,"d":"-50.00 €"},{"v":-55,"d":"-55.00 €"},{"$f":"IFERROR(IF(IngresosPorVentas[[#Totals],[Actual período]]=0,\"-\",IngresosPorVentas[[#This Row],[Actual período]]/Ingresos_Por_Ventas),\"-\")","v":{"v":-0.55,"d":"-55.00%"}},{"$f":"IFERROR(IF(IngresosPorVentas[[#This Row],[Antes período]]=IngresosPorVentas[[#This Row],[Actual período]],0,IF(IngresosPorVentas[[#This Row],[Actual período]]>IngresosPorVentas[[#This Row],[Antes período]],ABS((IngresosPorVentas[[#This Row],[Actual período]]/IngresosPorVentas[[#This Row],[Antes período]])-1),IF(AND(IngresosPorVentas[[#This Row],[Actual período]]<IngresosPorVentas[[#This Row],[Antes período]],IngresosPorVentas[[#This Row],[Antes período]]<0),-((IngresosPorVentas[[#This Row],[Actual período]]/IngresosPorVentas[[#This Row],[Antes período]])-1),(IngresosPorVentas[[#This Row],[Actual período]]/IngresosPorVentas[[#This Row],[Antes período]])-1))),\"-\")","v":{"v":-1.2000000000000002,"d":"-120.00%"}},{"$f":"IFERROR(IF(IngresosPorVentas[[#This Row],[Presupuesto]]=IngresosPorVentas[[#This Row],[Actual período]],0,IF(IngresosPorVentas[[#This Row],[Actual período]]>IngresosPorVentas[[#This Row],[Presupuesto]],ABS((IngresosPorVentas[[#This Row],[Actual período]]/IngresosPorVentas[[#This Row],[Presupuesto]])-1),IF(AND(IngresosPorVentas[[#This Row],[Actual período]]<IngresosPorVentas[[#This Row],[Presupuesto]],IngresosPorVentas[[#This Row],[Presupuesto]]<0),-((IngresosPorVentas[[#This Row],[Actual período]]/IngresosPorVentas[[#This Row],[Presupuesto]])-1),(IngresosPorVentas[[#This Row],[Actual período]]/IngresosPorVentas[[#This Row],[Presupuesto]])-1))),\"-\")","v":{"v":-0.10000000000000009,"d":"-10.00%"}}]
[null,null,"Costo de ventas","Producto/servicio 2",{"$nulls":3},{"$f":"IFERROR(IF(IngresosPorVentas[[#Totals],[Actual período]]=0,\"-\",IngresosPorVentas[[#This Row],[Actual período]]/Ingresos_Por_Ventas),\"-\")","v":{"v":0,"d":"0.00%"}},{"$f":"IFERROR(IF(IngresosPorVentas[[#This Row],[Antes período]]=IngresosPorVentas[[#This Row],[Actual período]],0,IF(IngresosPorVentas[[#This Row],[Actual período]]>IngresosPorVentas[[#This Row],[Antes período]],ABS((IngresosPorVentas[[#This Row],[Actual período]]/IngresosPorVentas[[#This Row],[Antes período]])-1),IF(AND(IngresosPorVentas[[#This Row],[Actual período]]<IngresosPorVentas[[#This Row],[Antes período]],IngresosPorVentas[[#This Row],[Antes período]]<0),-((IngresosPorVentas[[#This Row],[Actual período]]/IngresosPorVentas[[#This Row],[Antes período]])-1),(IngresosPorVentas[[#This Row],[Actual período]]/IngresosPorVentas[[#This Row],[Antes período]])-1))),\"-\")","v":{"v":0,"d":"0.00%"}},{"$f":"IFERROR(IF(IngresosPorVentas[[#This Row],[Presupuesto]]=IngresosPorVentas[[#This Row],[Actual período]],0,IF(IngresosPorVentas[[#This Row],[Actual período]]>IngresosPorVentas[[#This Row],[Presupuesto]],ABS((IngresosPorVentas[[#This Row],[Actual período]]/IngresosPorVentas[[#This Row],[Presupuesto]])-1),IF(AND(IngresosPorVentas[[#This Row],[Actual período]]<IngresosPorVentas[[#This Row],[Presupuesto]],IngresosPorVentas[[#This Row],[Presupuesto]]<0),-((IngresosPorVentas[[#This Row],[Actual período]]/IngresosPorVentas[[#This Row],[Presupuesto]])-1),(IngresosPorVentas[[#This Row],[Actual período]]/IngresosPorVentas[[#This Row],[Presupuesto]])-1))),\"-\")","v":{"v":0,"d":"0.00%"}}]
[null,null,"Costo de ventas","Producto/servicio 3",{"$nulls":3},{"$f":"IFERROR(IF(IngresosPorVentas[[#Totals],[Actual período]]=0,\"-\",IngresosPorVentas[[#This Row],[Actual período]]/Ingresos_Por_Ventas),\"-\")","v":{"v":0,"d":"0.00%"}},{"$f":"IFERROR(IF(IngresosPorVentas[[#This Row],[Antes período]]=IngresosPorVentas[[#This Row],[Actual período]],0,IF(IngresosPorVentas[[#This Row],[Actual período]]>IngresosPorVentas[[#This Row],[Antes período]],ABS((IngresosPorVentas[[#This Row],[Actual período]]/IngresosPorVentas[[#This Row],[Antes período]])-1),IF(AND(IngresosPorVentas[[#This Row],[Actual período]]<IngresosPorVentas[[#This Row],[Antes período]],IngresosPorVentas[[#This Row],[Antes período]]<0),-((IngresosPorVentas[[#This Row],[Actual período]]/IngresosPorVentas[[#This Row],[Antes período]])-1),(IngresosPorVentas[[#This Row],[Actual período]]/IngresosPorVentas[[#This Row],[Antes período]])-1))),\"-\")","v":{"v":0,"d":"0.00%"}},{"$f":"IFERROR(IF(IngresosPorVentas[[#This Row],[Presupuesto]]=IngresosPorVentas[[#This Row],[Actual período]],0,IF(IngresosPorVentas[[#This Row],[Actual período]]>IngresosPorVentas[[#This Row],[Presupuesto]],ABS((IngresosPorVentas[[#This Row],[Actual período]]/IngresosPorVentas[[#This Row],[Presupuesto]])-1),IF(AND(IngresosPorVentas[[#This Row],[Actual período]]<IngresosPorVentas[[#This Row],[Presupuesto]],IngresosPorVentas[[#This Row],[Presupuesto]]<0),-((IngresosPorVentas[[#This Row],[Actual período]]/IngresosPorVentas[[#This Row],[Presupuesto]])-1),(IngresosPorVentas[[#This Row],[Actual período]]/IngresosPorVentas[[#This Row],[Presupuesto]])-1))),\"-\")","v":{"v":0,"d":"0.00%"}}]
[null,null,"Costo de ventas","Producto/servicio 4",{"$nulls":3},{"$f":"IFERROR(IF(IngresosPorVentas[[#Totals],[Actual período]]=0,\"-\",IngresosPorVentas[[#This Row],[Actual período]]/Ingresos_Por_Ventas),\"-\")","v":{"v":0,"d":"0.00%"}},{"$f":"IFERROR(IF(IngresosPorVentas[[#This Row],[Antes período]]=IngresosPorVentas[[#This Row],[Actual período]],0,IF(IngresosPorVentas[[#This Row],[Actual período]]>IngresosPorVentas[[#This Row],[Antes período]],ABS((IngresosPorVentas[[#This Row],[Actual período]]/IngresosPorVentas[[#This Row],[Antes período]])-1),IF(AND(IngresosPorVentas[[#This Row],[Actual período]]<IngresosPorVentas[[#This Row],[Antes período]],IngresosPorVentas[[#This Row],[Antes período]]<0),-((IngresosPorVentas[[#This Row],[Actual período]]/IngresosPorVentas[[#This Row],[Antes período]])-1),(IngresosPorVentas[[#This Row],[Actual período]]/IngresosPorVentas[[#This Row],[Antes período]])-1))),\"-\")","v":{"v":0,"d":"0.00%"}},{"$f":"IFERROR(IF(IngresosPorVentas[[#This Row],[Presupuesto]]=IngresosPorVentas[[#This Row],[Actual período]],0,IF(IngresosPorVentas[[#This Row],[Actual período]]>IngresosPorVentas[[#This Row],[Presupuesto]],ABS((IngresosPorVentas[[#This Row],[Actual período]]/IngresosPorVentas[[#This Row],[Presupuesto]])-1),IF(AND(IngresosPorVentas[[#This Row],[Actual período]]<IngresosPorVentas[[#This Row],[Presupuesto]],IngresosPorVentas[[#This Row],[Presupuesto]]<0),-((IngresosPorVentas[[#This Row],[Actual período]]/IngresosPorVentas[[#This Row],[Presupuesto]])-1),(IngresosPorVentas[[#This Row],[Actual período]]/IngresosPorVentas[[#This Row],[Presupuesto]])-1))),\"-\")","v":{"v":0,"d":"0.00%"}}]
[null,null,"Total de ingresos por ventas",null,{"$f":"SUBTOTAL(109,IngresosPorVentas[Antes período])","v":{"v":75,"d":"75.00 €"}},{"$f":"SUBTOTAL(109,IngresosPorVentas[Presupuesto])","v":{"v":51,"d":"51.00 €"}},{"$f":"SUBTOTAL(109,IngresosPorVentas[Actual período])","v":{"v":45,"d":"45.00 €"}},{"$f":"SUBTOTAL(109,IngresosPorVentas[Período actual como % de ventas])","v":{"v":0.44999999999999996,"d":"45.00%"}},{"$f":"SUBTOTAL(109,IngresosPorVentas[Porcentaje de cambio desde período anterior])","v":{"v":-1.2000000000000002,"d":"-120.00%"}},{"$f":"SUBTOTAL(109,IngresosPorVentas[% de cambio del presupuesto])","v":{"v":3.85,"d":"385.00%"}}]

{"sheet":"Ingresos","index":2,"n_rows":9,"n_cols":10,"rows_kept":9}
[]
[]
[null,null,{"$f":"Título_Libro","v":"BALANCE DE PÉRDIDAS Y GANANCIAS"},{"$nulls":5},"Ingresos"]
[null,null,{"$f":"Nombre_de_la_compañía","v":"CELULAR SATCOM"},{"$nulls":5},"Expresado en millares",{"$f":"IFERROR(Ingresos[[#Totals],[Actual período]],\"-\")","v":{"v":62,"d":"62.00 €"}}]
[]
[null,null,"Tipo de ingreso","Descripción","Antes período","Presupuesto","Actual período","Período actual como % de ventas","Porcentaje de cambio desde período anterior","% de cambio del presupuesto"]
[null,null,"Ingresos","Otros ingresos",{"v":50,"d":"50.00 €"},{"v":60,"d":"60.00 €"},{"v":62,"d":"62.00 €"},{"$f":"IFERROR(IF(Ingresos_Por_Ventas=0,\"-\",Ingresos[[#This Row],[Actual período]]/Ingresos_Por_Ventas),\"-\")","v":{"v":0.62,"d":"62.00%"}},{"$f":"IFERROR(IF(Ingresos[[#This Row],[Antes período]]=Ingresos[[#This Row],[Actual período]],0,IF(Ingresos[[#This Row],[Actual período]]>Ingresos[[#This Row],[Antes período]],ABS((Ingresos[[#This Row],[Actual período]]/Ingresos[[#This Row],[Antes período]])-1),IF(AND(Ingresos[[#This Row],[Actual período]]<Ingresos[[#This Row],[Antes período]],Ingresos[[#This Row],[Antes período]]<0),-((Ingresos[[#This Row],[Actual período]]/Ingresos[[#This Row],[Antes período]])-1),(Ingresos[[#This Row],[Actual período]]/Ingresos[[#This Row],[Antes período]])-1))),\"-\")","v":{"v":0.24,"d":"24.00%"}},{"$f":"IFERROR(IF(Ingresos[[#This Row],[Presupuesto]]=Ingresos[[#This Row],[Actual período]],0,IF(Ingresos[[#This Row],[Actual período]]>Ingresos[[#This Row],[Presupuesto]],ABS((Ingresos[[#This Row],[Actual período]]/Ingresos[[#This Row],[Presupuesto]])-1),IF(AND(Ingresos[[#This Row],[Actual período]]<Ingresos[[#This Row],[Presupuesto]],Ingresos[[#This Row],[Presupuesto]]<0),-((Ingresos[[#This Row],[Actual período]]/Ingresos[[#This Row],[Presupuesto]])-1),(Ingresos[[#This Row],[Actual período]]/Ingresos[[#This Row],[Presupuesto]])-1))),\"-\")","v":{"v":0.03333333333333344,"d":"3.33%"}}]
[{"$nulls":7},{"$f":"IFERROR(IF(Ingresos_Por_Ventas=0,\"-\",Ingresos[[#This Row],[Actual período]]/Ingresos_Por_Ventas),\"-\")","v":{"v":0,"d":"0.00%"}},{"$f":"IFERROR(IF(Ingresos[[#This Row],[Antes período]]=Ingresos[[#This Row],[Actual período]],0,IF(Ingresos[[#This Row],[Actual período]]>Ingresos[[#This Row],[Antes período]],ABS((Ingresos[[#This Row],[Actual período]]/Ingresos[[#This Row],[Antes período]])-1),IF(AND(Ingresos[[#This Row],[Actual período]]<Ingresos[[#This Row],[Antes período]],Ingresos[[#This Row],[Antes período]]<0),-((Ingresos[[#This Row],[Actual período]]/Ingresos[[#This Row],[Antes período]])-1),(Ingresos[[#This Row],[Actual período]]/Ingresos[[#This Row],[Antes período]])-1))),\"-\")","v":{"v":0,"d":"0.00%"}},{"$f":"IFERROR(IF(Ingresos[[#This Row],[Presupuesto]]=Ingresos[[#This Row],[Actual período]],0,IF(Ingresos[[#This Row],[Actual período]]>Ingresos[[#This Row],[Presupuesto]],ABS((Ingresos[[#This Row],[Actual período]]/Ingresos[[#This Row],[Presupuesto]])-1),IF(AND(Ingresos[[#This Row],[Actual período]]<Ingresos[[#This Row],[Presupuesto]],Ingresos[[#This Row],[Presupuesto]]<0),-((Ingresos[[#This Row],[Actual período]]/Ingresos[[#This Row],[Presupuesto]])-1),(Ingresos[[#This Row],[Actual período]]/Ingresos[[#This Row],[Presupuesto]])-1))),\"-\")","v":{"v":0,"d":"0.00%"}}]
[null,null,"Total de ingresos por ventas",null,{"$f":"SUBTOTAL(109,Ingresos[Antes período])","v":{"v":50,"d":"50.00 €"}},{"$f":"SUBTOTAL(109,Ingresos[Presupuesto])","v":{"v":60,"d":"60.00 €"}},{"$f":"SUBTOTAL(109,Ingresos[Actual período])","v":{"v":62,"d":"62.00 €"}},{"$f":"SUBTOTAL(109,Ingresos[Período actual como % de ventas])","v":{"v":0.62,"d":"62.00%"}},{"$f":"SUBTOTAL(109,Ingresos[Porcentaje de cambio desde período anterior])","v":{"v":0.24,"d":"24.00%"}},{"$f":"SUBTOTAL(109,Ingresos[% de cambio del presupuesto])","v":{"v":0.03333333333333344,"d":"3.33%"}}]

{"sheet":"Gastos","index":3,"n_rows":27,"n_cols":10,"rows_kept":27}
[]
[]
[null,null,{"$f":"Título_Libro","v":"BALANCE DE PÉRDIDAS Y GANANCIAS"},{"$nulls":5},"Gastos operativos"]
[null,null,{"$f":"Nombre_de_la_compañía","v":"CELULAR SATCOM"},{"$nulls":5},"Expresado en millares",{"$f":"IFERROR(GastosOperativos[[#Totals],[Actual período]],\"-\")","v":{"v":45,"d":"45.00 €"}}]
[]
[null,null,"Tipo de gasto","Descripción","Antes período","Presupuesto","Actual período","Período actual como % de ventas","Porcentaje de cambio desde período anterior","% de cambio del presupuesto"]
[null,null,"Ventas y marketing","Publicidad",{"v":30,"d":"30.00 €"},{"v":35,"d":"35.00 €"},{"v":45,"d":"45.00 €"},{"$f":"IFERROR(IF(Ingresos_Por_Ventas=0,\"-\",GastosOperativos[[#This Row],[Actual período]]/Ingresos_Por_Ventas),\"-\")","v":{"v":0.45,"d":"45.00%"}},{"$f":"IFERROR(IF(GastosOperativos[[#This Row],[Antes período]]=GastosOperativos[[#This Row],[Actual período]],0,IF(GastosOperativos[[#This Row],[Actual período]]>GastosOperativos[[#This Row],[Antes período]],ABS((GastosOperativos[[#This Row],[Actual período]]/GastosOperativos[[#This Row],[Antes período]])-1),IF(AND(GastosOperativos[[#This Row],[Actual período]]<GastosOperativos[[#This Row],[Antes período]],GastosOperativos[[#This Row],[Antes período]]<0),-((GastosOperativos[[#This Row],[Actual período]]/GastosOperativos[[#This Row],[Antes período]])-1),(GastosOperativos[[#This Row],[Actual período]]/GastosOperativos[[#This Row],[Antes período]])-1))),\"-\")","v":{"v":0.5,"d":"50.00%"}},{"$f":"IFERROR(IF(GastosOperativos[[#This Row],[Presupuesto]]=GastosOperativos[[#This Row],[Actual período]],0,IF(GastosOperativos[[#This Row],[Actual período]]>GastosOperativos[[#This Row],[Presupuesto]],ABS((GastosOperativos[[#This Row],[Actual período]]/GastosOperativos[[#This Row],[Presupuesto]])-1),IF(AND(GastosOperativos[[#This Row],[Actual período]]<GastosOperativos[[#This Row],[Presupuesto]],GastosOperativos[[#This Row],[Presupuesto]]<0),-((GastosOperativos[[#This Row],[Actual período]]/GastosOperativos[[#This Row],[Presupuesto]])-1),(GastosOperativos[[#This Row],[Actual período]]/GastosOperativos[[#This Row],[Presupuesto]])-1))),\"-\")","v":{"v":0.2857142857142858,"d":"28.57%"}}]
[null,null,"Ventas y marketing","Marketing directo",{"$nulls":3},{"$f":"IFERROR(IF(Ingresos_Por_Ventas=0,\"-\",GastosOperativos[[#This Row],[Actual período]]/Ingresos_Por_Ventas),\"-\")","v":{"v":0,"d":"0.00%"}},{"$f":"IFERROR(IF(GastosOperativos[[#This Row],[Antes período]]=GastosOperativos[[#This Row],[Actual período]],0,IF(GastosOperativos[[#This Row],[Actual período]]>GastosOperativos[[#This Row],[Antes período]],ABS((GastosOperativos[[#This Row],[Actual período]]/GastosOperativos[[#This Row],[Antes período]])-1),IF(AND(GastosOperativos[[#This Row],[Actual período]]<GastosOperativos[[#This Row],[Antes período]],GastosOperativos[[#This Row],[Antes período]]<0),-((GastosOperativos[[#This Row],[Actual período]]/GastosOperativos[[#This Row],[Antes período]])-1),(GastosOperativos[[#This Row],[Actual período]]/GastosOperativos[[#This Row],[Antes período]])-1))),\"-\")","v":{"v":0,"d":"0.00%"}},{"$f":"IFERROR(IF(GastosOperativos[[#This Row],[Presupuesto]]=GastosOperativos[[#This Row],[Actual período]],0,IF(GastosOperativos[[#This Row],[Actual período]]>GastosOperativos[[#This Row],[Presupuesto]],ABS((GastosOperativos[[#This Row],[Actual período]]/GastosOperativos[[#This Row],[Presupuesto]])-1),IF(AND(GastosOperativos[[#This Row],[Actual período]]<GastosOperativos[[#This Row],[Presupuesto]],GastosOperativos[[#This Row],[Presupuesto]]<0),-((GastosOperativos[[#This Row],[Actual período]]/GastosOperativos[[#This Row],[Presupuesto]])-1),(GastosOperativos[[#This Row],[Actual período]]/GastosOperativos[[#This Row],[Presupuesto]])-1))),\"-\")","v":{"v":0,"d":"0.00%"}}]
[null,null,"Ventas y marketing","Otros gastos (especifique)",{"$nulls":3},{"$f":"IFERROR(IF(Ingresos_Por_Ventas=0,\"-\",GastosOperativos[[#This Row],[Actual período]]/Ingresos_Por_Ventas),\"-\")","v":{"v":0,"d":"0.00%"}},{"$f":"IFERROR(IF(GastosOperativos[[#This Row],[Antes período]]=GastosOperativos[[#This Row],[Actual período]],0,IF(GastosOperativos[[#This Row],[Actual período]]>GastosOperativos[[#This Row],[Antes período]],ABS((GastosOperativos[[#This Row],[Actual período]]/GastosOperativos[[#This Row],[Antes período]])-1),IF(AND(GastosOperativos[[#This Row],[Actual período]]<GastosOperativos[[#This Row],[Antes período]],GastosOperativos[[#This Row],[Antes período]]<0),-((GastosOperativos[[#This Row],[Actual período]]/GastosOperativos[[#This Row],[Antes período]])-1),(GastosOperativos[[#This Row],[Actual período]]/GastosOperativos[[#This Row],[Antes período]])-1))),\"-\")","v":{"v":0,"d":"0.00%"}},{"$f":"IFERROR(IF(GastosOperativos[[#This Row],[Presupuesto]]=GastosOperativos[[#This Row],[Actual período]],0,IF(GastosOperativos[[#This Row],[Actual período]]>GastosOperativos[[#This Row],[Presupuesto]],ABS((GastosOperativos[[#This Row],[Actual período]]/GastosOperativos[[#This Row],[Presupuesto]])-1),IF(AND(GastosOperativos[[#This Row],[Actual período]]<GastosOperativos[[#This Row],[Presupuesto]],GastosOperativos[[#This Row],[Presupuesto]]<0),-((GastosOperativos[[#This Row],[Actual período]]/GastosOperativos[[#This Row],[Presupuesto]])-1),(GastosOperativos[[#This Row],[Actual período]]/GastosOperativos[[#This Row],[Presupuesto]])-1))),\"-\")","v":{"v":0,"d":"0.00%"}}]
[null,null,"Ventas y marketing","Otros gastos (especifique)",{"$nulls":3},{"$f":"IFERROR(IF(Ingresos_Por_Ventas=0,\"-\",GastosOperativos[[#This Row],[Actual período]]/Ingresos_Por_Ventas),\"-\")","v":{"v":0,"d":"0.00%"}},{"$f":"IFERROR(IF(GastosOperativos[[#This Row],[Antes período]]=GastosOperativos[[#This Row],[Actual período]],0,IF(GastosOperativos[[#This Row],[Actual período]]>GastosOperativos[[#This Row],[Antes período]],ABS((GastosOperativos[[#This Row],[Actual período]]/GastosOperativos[[#This Row],[Antes período]])-1),IF(AND(GastosOperativos[[#This Row],[Actual período]]<GastosOperativos[[#This Row],[Antes período]],GastosOperativos[[#This Row],[Antes período]]<0),-((GastosOperativos[[#This Row],[Actual período]]/GastosOperativos[[#This Row],[Antes período]])-1),(GastosOperativos[[#This Row],[Actual período]]/GastosOperativos[[#This Row],[Antes período]])-1))),\"-\")","v":{"v":0,"d":"0.00%"}},{"$f":"IFERROR(IF(GastosOperativos[[#This Row],[Presupuesto]]=GastosOperativos[[#This Row],[Actual período]],0,IF(GastosOperativos[[#This Row],[Actual período]]>GastosOperativos[[#This Row],[Presupuesto]],ABS((GastosOperativos[[#This Row],[Actual período]]/GastosOperativos[[#This Row],[Presupuesto]])-1),IF(AND(GastosOperativos[[#This Row],[Actual período]]<GastosOperativos[[#This Row],[Presupuesto]],GastosOperativos[[#This Row],[Presupuesto]]<0),-((GastosOperativos[[#This Row],[Actual período]]/GastosOperativos[[#This Row],[Presupuesto]])-1),(GastosOperativos[[#This Row],[Actual período]]/GastosOperativos[[#This Row],[Presupuesto]])-1))),\"-\")","v":{"v":0,"d":"0.00%"}}]
[null,null,"Investigación y desarrollo","Licencias de tecnología",{"$nulls":3},{"$f":"IFERROR(IF(Ingresos_Por_Ventas=0,\"-\",GastosOperativos[[#This Row],[Actual período]]/Ingresos_Por_Ventas),\"-\")","v":{"v":0,"d":"0.00%"}},{"$f":"IFERROR(IF(GastosOperativos[[#This Row],[Antes período]]=GastosOperativos[[#This Row],[Actual período]],0,IF(GastosOperativos[[#This Row],[Actual período]]>GastosOperativos[[#This Row],[Antes período]],ABS((GastosOperativos[[#This Row],[Actual período]]/GastosOperativos[[#This Row],[Antes período]])-1),IF(AND(GastosOperativos[[#This Row],[Actual período]]<GastosOperativos[[#This Row],[Antes período]],GastosOperativos[[#This Row],[Antes período]]<0),-((GastosOperativos[[#This Row],[Actual período]]/GastosOperativos[[#This Row],[Antes período]])-1),(GastosOperativos[[#This Row],[Actual período]]/GastosOperativos[[#This Row],[Antes período]])-1))),\"-\")","v":{"v":0,"d":"0.00%"}},{"$f":"IFERROR(IF(GastosOperativos[[#This Row],[Presupuesto]]=GastosOperativos[[#This Row],[Actual período]],0,IF(GastosOperativos[[#This Row],[Actual período]]>GastosOperativos[[#This Row],[Presupuesto]],ABS((GastosOperativos[[#This Row],[Actual período]]/GastosOperativos[[#This Row],[Presupuesto]])-1),IF(AND(GastosOperativos[[#This Row],[Actual período]]<GastosOperativos[[#This Row],[Presupuesto]],GastosOperativos[[#This Row],[Presupuesto]]<0),-((GastosOperativos[[#This Row],[Actual período]]/GastosOperativos[[#This Row],[Presupuesto]])-1),(GastosOperativos[[#This Row],[Actual período]]/GastosOperativos[[#This Row],[Presupuesto]])-1))),\"-\")","v":{"v":0,"d":"0.00%"}}]
[null,null,"Investigación y desarrollo","Patentes ",{"$nulls":3},{"$f":"IFERROR(IF(Ingresos_Por_Ventas=0,\"-\",GastosOperativos[[#This Row],[Actual período]]/Ingresos_Por_Ventas),\"-\")","v":{"v":0,"d":"0.00%"}},{"$f":"IFERROR(IF(GastosOperativos[[#This Row],[Antes período]]=GastosOperativos[[#This Row],[Actual período]],0,IF(GastosOperativos[[#This Row],[Actual período]]>GastosOperativos[[#This Row],[Antes período]],ABS((GastosOperativos[[#This Row],[Actual período]]/GastosOperativos[[#This Row],[Antes período]])-1),IF(AND(GastosOperativos[[#This Row],[Actual período]]<GastosOperativos[[#This Row],[Antes período]],GastosOperativos[[#This Row],[Antes período]]<0),-((GastosOperativos[[#This Row],[Actual período]]/GastosOperativos[[#This Row],[Antes período]])-1),(GastosOperativos[[#This Row],[Actual período]]/GastosOperativos[[#This Row],[Antes período]])-1))),\"-\")","v":{"v":0,"d":"0.00%"}},{"$f":"IFERROR(IF(GastosOperativos[[#This Row],[Presupuesto]]=GastosOperativos[[#This Row],[Actual período]],0,IF(GastosOperativos[[#This Row],[Actual período]]>GastosOperativos[[#This Row],[Presupuesto]],ABS((GastosOperativos[[#This Row],[Actual período]]/GastosOperativos[[#This Row],[Presupuesto]])-1),IF(AND(GastosOperativos[[#This Row],[Actual período]]<GastosOperativos[[#This Row],[Presupuesto]],GastosOperativos[[#This Row],[Presupuesto]]<0),-((GastosOperativos[[#This Row],[Actual período]]/GastosOperativos[[#This Row],[Presupuesto]])-1),(GastosOperativos[[#This Row],[Actual período]]/GastosOperativos[[#This Row],[Presupuesto]])-1))),\"-\")","v":{"v":0,"d":"0.00%"}}]
[null,null,"Investigación y desarrollo","Otros gastos (especifique)",{"$nulls":3},{"$f":"IFERROR(IF(Ingresos_Por_Ventas=0,\"-\",GastosOperativos[[#This Row],[Actual período]]/Ingresos_Por_Ventas),\"-\")","v":{"v":0,"d":"0.00%"}},{"$f":"IFERROR(IF(GastosOperativos[[#This Row],[Antes período]]=GastosOperativos[[#This Row],[Actual período]],0,IF(GastosOperativos[[#This Row],[Actual período]]>GastosOperativos[[#This Row],[Antes período]],ABS((GastosOperativos[[#This Row],[Actual período]]/GastosOperativos[[#This Row],[Antes período]])-1),IF(AND(GastosOperativos[[#This Row],[Actual período]]<GastosOperativos[[#This Row],[Antes período]],GastosOperativos[[#This Row],[Antes período]]<0),-((GastosOperativos[[#This Row],[Actual período]]/GastosOperativos[[#This Row],[Antes período]])-1),(GastosOperativos[[#This Row],[Actual período]]/GastosOperativos[[#This Row],[Antes período]])-1))),\"-\")","v":{"v":0,"d":"0.00%"}},{"$f":"IFERROR(IF(GastosOperativos[[#This Row],[Presupuesto]]=GastosOperativos[[#This Row],[Actual período]],0,IF(GastosOperativos[[#This Row],[Actual período]]>GastosOperativos[[#This Row],[Presupuesto]],ABS((GastosOperativos[[#This Row],[Actual período]]/GastosOperativos[[#This Row],[Presupuesto]])-1),IF(AND(GastosOperativos[[#This Row],[Actual período]]<GastosOperativos[[#This Row],[Presupuesto]],GastosOperativos[[#This Row],[Presupuesto]]<0),-((GastosOperativos[[#This Row],[Actual período]]/GastosOperativos[[#This Row],[Presupuesto]])-1),(GastosOperativos[[#This Row],[Actual período]]/GastosOperativos[[#This Row],[Presupuesto]])-1))),\"-\")","v":{"v":0,"d":"0.00%"}}]
[null,null,"Investigación y desarrollo","Otros gastos (especifique)",{"$nulls":3},{"$f":"IFERROR(IF(Ingresos_Por_Ventas=0,\"-\",GastosOperativos[[#This Row],[Actual período]]/Ingresos_Por_Ventas),\"-\")","v":{"v":0,"d":"0.00%"}},{"$f":"IFERROR(IF(GastosOperativos[[#This Row],[Antes período]]=GastosOperativos[[#This Row],[Actual período]],0,IF(GastosOperativos[[#This Row],[Actual período]]>GastosOperativos[[#This Row],[Antes período]],ABS((GastosOperativos[[#This Row],[Actual período]]/GastosOperativos[[#This Row],[Antes período]])-1),IF(AND(GastosOperativos[[#This Row],[Actual período]]<GastosOperativos[[#This Row],[Antes período]],GastosOperativos[[#This Row],[Antes período]]<0),-((GastosOperativos[[#This Row],[Actual período]]/GastosOperativos[[#This Row],[Antes período]])-1),(GastosOperativos[[#This Row],[Actual período]]/GastosOperativos[[#This Row],[Antes período]])-1))),\"-\")","v":{"v":0,"d":"0.00%"}},{"$f":"IFERROR(IF(GastosOperativos[[#This Row],[Presupuesto]]=GastosOperativos[[#This Row],[Actual período]],0,IF(GastosOperativos[[#This Row],[Actual período]]>GastosOperativos[[#This Row],[Presupuesto]],ABS((GastosOperativos[[#This Row],[Actual período]]/GastosOperativos[[#This Row],[Presupuesto]])-1),IF(AND(GastosOperativos[[#This Row],[Actual período]]<GastosOperativos[[#This Row],[Presupuesto]],GastosOperativos[[#This Row],[Presupuesto]]<0),-((GastosOperativos[[#This Row],[Actual período]]/GastosOperativos[[#This Row],[Presupuesto]])-1),(GastosOperativos[[#This Row],[Actual período]]/GastosOperativos[[#This Row],[Presupuesto]])-1))),\"-\")","v":{"v":0,"d":"0.00%"}}]
[null,null,"Generales y administrativos","Salarios y sueldos",{"$nulls":3},{"$f":"IFERROR(IF(Ingresos_Por_Ventas=0,\"-\",GastosOperativos[[#This Row],[Actual período]]/Ingresos_Por_Ventas),\"-\")","v":{"v":0,"d":"0.00%"}},{"$f":"IFERROR(IF(GastosOperativos[[#This Row],[Antes período]]=GastosOperativos[[#This Row],[Actual período]],0,IF(GastosOperativos[[#This Row],[Actual período]]>GastosOperativos[[#This Row],[Antes período]],ABS((GastosOperativos[[#This Row],[Actual período]]/GastosOperativos[[#This Row],[Antes período]])-1),IF(AND(GastosOperativos[[#This Row],[Actual período]]<GastosOperativos[[#This Row],[Antes período]],GastosOperativos[[#This Row],[Antes período]]<0),-((GastosOperativos[[#This Row],[Actual período]]/GastosOperativos[[#This Row],[Antes período]])-1),(GastosOperativos[[#This Row],[Actual período]]/GastosOperativos[[#This Row],[Antes período]])-1))),\"-\")","v":{"v":0,"d":"0.00%"}},{"$f":"IFERROR(IF(GastosOperativos[[#This Row],[Presupuesto]]=GastosOperativos[[#This Row],[Actual período]],0,IF(GastosOperativos[[#This Row],[Actual período]]>GastosOperativos[[#This Row],[Presupuesto]],ABS((GastosOperativos[[#This Row],[Actual período]]/GastosOperativos[[#This Row],[Presupuesto]])-1),IF(AND(GastosOperativos[[#This Row],[Actual período]]<GastosOperativos[[#This Row],[Presupuesto]],GastosOperativos[[#This Row],[Presupuesto]]<0),-((GastosOperativos[[#This Row],[Actual período]]/GastosOperativos[[#This Row],[Presupuesto]])-1),(GastosOperativos[[#This Row],[Actual período]]/GastosOperativos[[#This Row],[Presupuesto]])-1))),\"-\")","v":{"v":0,"d":"0.00%"}}]
[null,null,"Generales y administrativos","Servicios externos",{"$nulls":3},{"$f":"IFERROR(IF(Ingresos_Por_Ventas=0,\"-\",GastosOperativos[[#This Row],[Actual período]]/Ingresos_Por_Ventas),\"-\")","v":{"v":0,"d":"0.00%"}},{"$f":"IFERROR(IF(GastosOperativos[[#This Row],[Antes período]]=GastosOperativos[[#This Row],[Actual período]],0,IF(GastosOperativos[[#This Row],[Actual período]]>GastosOperativos[[#This Row],[Antes período]],ABS((GastosOperativos[[#This Row],[Actual período]]/GastosOperativos[[#This Row],[Antes período]])-1),IF(AND(GastosOperativos[[#This Row],[Actual período]]<GastosOperativos[[#This Row],[Antes período]],GastosOperativos[[#This Row],[Antes período]]<0),-((GastosOperativos[[#This Row],[Actual período]]/GastosOperativos[[#This Row],[Antes período]])-1),(GastosOperativos[[#This Row],[Actual período]]/GastosOperativos[[#This Row],[Antes período]])-1))),\"-\")","v":{"v":0,"d":"0.00%"}},{"$f":"IFERROR(IF(GastosOperativos[[#This Row],[Presupuesto]]=GastosOperativos[[#This Row],[Actual período]],0,IF(GastosOperativos[[#This Row],[Actual período]]>GastosOperativos[[#This Row],[Presupuesto]],ABS((GastosOperativos[[#This Row],[Actual período]]/GastosOperativos[[#This Row],[Presupuesto]])-1),IF(AND(GastosOperativos[[#This Row],[Actual período]]<GastosOperativos[[#This Row],[Presupuesto]],GastosOperativos[[#This Row],[Presupuesto]]<0),-((GastosOperativos[[#This Row],[Actual período]]/GastosOperativos[[#This Row],[Presupuesto]])-1),(GastosOperativos[[#This Row],[Actual período]]/GastosOperativos[[#This Row],[Presupuesto]])-1))),\"-\")","v":{"v":0,"d":"0.00%"}}]
[null,null,"Generales y administrativos","Suministros",{"$nulls":3},{"$f":"IFERROR(IF(Ingresos_Por_Ventas=0,\"-\",GastosOperativos[[#This Row],[Actual período]]/Ingresos_Por_Ventas),\"-\")","v":{"v":0,"d":"0.00%"}},{"$f":"IFERROR(IF(GastosOperativos[[#This Row],[Antes período]]=GastosOperativos[[#This Row],[Actual período]],0,IF(GastosOperativos[[#This Row],[Actual período]]>GastosOperativos[[#This Row],[Antes período]],ABS((GastosOperativos[[#This Row],[Actual período]]/GastosOperativos[[#This Row],[Antes período]])-1),IF(AND(GastosOperativos[[#This Row],[Actual período]]<GastosOperativos[[#This Row],[Antes período]],GastosOperativos[[#This Row],[Antes período]]<0),-((GastosOperativos[[#This Row],[Actual período]]/GastosOperativos[[#This Row],[Antes período]])-1),(GastosOperativos[[#This Row],[Actual período]]/GastosOperativos[[#This Row],[Antes período]])-1))),\"-\")","v":{"v":0,"d":"0.00%"}},{"$f":"IFERROR(IF(GastosOperativos[[#This Row],[Presupuesto]]=GastosOperativos[[#This Row],[Actual período]],0,IF(GastosOperativos[[#This Row],[Actual período]]>GastosOperativos[[#This Row],[Presupuesto]],ABS((GastosOperativos[[#This Row],[Actual período]]/GastosOperativos[[#This Row],[Presupuesto]])-1),IF(AND(GastosOperativos[[#This Row],[Actual período]]<GastosOperativos[[#This Row],[Presupuesto]],GastosOperativos[[#This Row],[Presupuesto]]<0),-((GastosOperativos[[#This Row],[Actual período]]/GastosOperativos[[#This Row],[Presupuesto]])-1),(GastosOperativos[[#This Row],[Actual período]]/GastosOperativos[[#This Row],[Presupuesto]])-1))),\"-\")","v":{"v":0,"d":"0.00%"}}]
[null,null,"Generales y administrativos","Comidas y entretenimiento",{"$nulls":3},{"$f":"IFERROR(IF(Ingresos_Por_Ventas=0,\"-\",GastosOperativos[[#This Row],[Actual período]]/Ingresos_Por_Ventas),\"-\")","v":{"v":0,"d":"0.00%"}},{"$f":"IFERROR(IF(GastosOperativos[[#This Row],[Antes período]]=GastosOperativos[[#This Row],[Actual período]],0,IF(GastosOperativos[[#This Row],[Actual período]]>GastosOperativos[[#This Row],[Antes período]],ABS((GastosOperativos[[#This Row],[Actual período]]/GastosOperativos[[#This Row],[Antes período]])-1),IF(AND(GastosOperativos[[#This Row],[Actual período]]<GastosOperativos[[#This Row],[Antes período]],GastosOperativos[[#This Row],[Antes período]]<0),-((GastosOperativos[[#This Row],[Actual período]]/GastosOperativos[[#This Row],[Antes período]])-1),(GastosOperativos[[#This Row],[Actual período]]/GastosOperativos[[#This Row],[Antes período]])-1))),\"-\")","v":{"v":0,"d":"0.00%"}},{"$f":"IFERROR(IF(GastosOperativos[[#This Row],[Presupuesto]]=GastosOperativos[[#This Row],[Actual período]],0,IF(GastosOperativos[[#This Row],[Actual período]]>GastosOperativos[[#This Row],[Presupuesto]],ABS((GastosOperativos[[#This Row],[Actual período]]/GastosOperativos[[#This Row],[Presupuesto]])-1),IF(AND(GastosOperativos[[#This Row],[Actual período]]<GastosOperativos[[#This Row],[Presupuesto]],GastosOperativos[[#This Row],[Presupuesto]]<0),-((GastosOperativos[[#This Row],[Actual período]]/GastosOperativos[[#This Row],[Presupuesto]])-1),(GastosOperativos[[#This Row],[Actual período]]/GastosOperativos[[#This Row],[Presupuesto]])-1))),\"-\")","v":{"v":0,"d":"0.00%"}}]
[null,null,"Generales y administrativos","Alquiler",{"$nulls":3},{"$f":"IFERROR(IF(Ingresos_Por_Ventas=0,\"-\",GastosOperativos[[#This Row],[Actual período]]/Ingresos_Por_Ventas),\"-\")","v":{"v":0,"d":"0.00%"}},{"$f":"IFERROR(IF(GastosOperativos[[#This Row],[Antes período]]=GastosOperativos[[#This Row],[Actual período]],0,IF(GastosOperativos[[#This Row],[Actual período]]>GastosOperativos[[#This Row],[Antes período]],ABS((GastosOperativos[[#This Row],[Actual período]]/GastosOperativos[[#This Row],[Antes período]])-1),IF(AND(GastosOperativos[[#This Row],[Actual período]]<GastosOperativos[[#This Row],[Antes período]],GastosOperativos[[#This Row],[Antes período]]<0),-((GastosOperativos[[#This Row],[Actual período]]/GastosOperativos[[#This Row],[Antes período]])-1),(GastosOperativos[[#This Row],[Actual período]]/GastosOperativos[[#This Row],[Antes período]])-1))),\"-\")","v":{"v":0,"d":"0.00%"}},{"$f":"IFERROR(IF(GastosOperativos[[#This Row],[Presupuesto]]=GastosOperativos[[#This Row],[Actual período]],0,IF(GastosOperativos[[#This Row],[Actual período]]>GastosOperativos[[#This Row],[Presupuesto]],ABS((GastosOperativos[[#This Row],[Actual período]]/GastosOperativos[[#This Row],[Presupuesto]])-1),IF(AND(GastosOperativos[[#This Row],[Actual período]]<GastosOperativos[[#This Row],[Presupuesto]],GastosOperativos[[#This Row],[Presupuesto]]<0),-((GastosOperativos[[#This Row],[Actual período]]/GastosOperativos[[#This Row],[Presupuesto]])-1),(GastosOperativos[[#This Row],[Actual período]]/GastosOperativos[[#This Row],[Presupuesto]])-1))),\"-\")","v":{"v":0,"d":"0.00%"}}]
[null,null,"Generales y administrativos","Teléfono",{"$nulls":3},{"$f":"IFERROR(IF(Ingresos_Por_Ventas=0,\"-\",GastosOperativos[[#This Row],[Actual período]]/Ingresos_Por_Ventas),\"-\")","v":{"v":0,"d":"0.00%"}},{"$f":"IFERROR(IF(GastosOperativos[[#This Row],[Antes período]]=GastosOperativos[[#This Row],[Actual período]],0,IF(GastosOperativos[[#This Row],[Actual período]]>GastosOperativos[[#This Row],[Antes período]],ABS((GastosOperativos[[#This Row],[Actual período]]/GastosOperativos[[#This Row],[Antes período]])-1),IF(AND(GastosOperativos[[#This Row],[Actual período]]<GastosOperativos[[#This Row],[Antes período]],GastosOperativos[[#This Row],[Antes período]]<0),-((GastosOperativos[[#This Row],[Actual período]]/GastosOperativos[[#This Row],[Antes período]])-1),(GastosOperativos[[#This Row],[Actual período]]/GastosOperativos[[#This Row],[Antes período]])-1))),\"-\")","v":{"v":0,"d":"0.00%"}},{"$f":"IFERROR(IF(GastosOperativos[[#This Row],[Presupuesto]]=GastosOperativos[[#This Row],[Actual período]],0,IF(GastosOperativos[[#This Row],[Actual período]]>GastosOperativos[[#This Row],[Presupuesto]],ABS((GastosOperativos[[#This Row],[Actual período]]/GastosOperativos[[#This Row],[Presupuesto]])-1),IF(AND(GastosOperativos[[#This Row],[Actual período]]<GastosOperativos[[#This Row],[Presupuesto]],GastosOperativos[[#This Row],[Presupuesto]]<0),-((GastosOperativos[[#This Row],[Actual período]]/GastosOperativos[[#This Row],[Presupuesto]])-1),(GastosOperativos[[#This Row],[Actual período]]/GastosOperativos[[#This Row],[Presupuesto]])-1))),\"-\")","v":{"v":0,"d":"0.00%"}}]
[null,null,"Generales y administrativos","Servicios públicos",{"$nulls":3},{"$f":"IFERROR(IF(Ingresos_Por_Ventas=0,\"-\",GastosOperativos[[#This Row],[Actual período]]/Ingresos_Por_Ventas),\"-\")","v":{"v":0,"d":"0.00%"}},{"$f":"IFERROR(IF(GastosOperativos[[#This Row],[Antes período]]=GastosOperativos[[#This Row],[Actual período]],0,IF(GastosOperativos[[#This Row],[Actual período]]>GastosOperativos[[#This Row],[Antes período]],ABS((GastosOperativos[[#This Row],[Actual período]]/GastosOperativos[[#This Row],[Antes período]])-1),IF(AND(GastosOperativos[[#This Row],[Actual período]]<GastosOperativos[[#This Row],[Antes período]],GastosOperativos[[#This Row],[Antes período]]<0),-((GastosOperativos[[#This Row],[Actual período]]/GastosOperativos[[#This Row],[Antes período]])-1),(GastosOperativos[[#This Row],[Actual período]]/GastosOperativos[[#This Row],[Antes período]])-1))),\"-\")","v":{"v":0,"d":"0.00%"}},{"$f":"IFERROR(IF(GastosOperativos[[#This Row],[Presupuesto]]=GastosOperativos[[#This Row],[Actual período]],0,IF(GastosOperativos[[#This Row],[Actual período]]>GastosOperativos[[#This Row],[Presupuesto]],ABS((GastosOperativos[[#This Row],[Actual período]]/GastosOperativos[[#This Row],[Presupuesto]])-1),IF(AND(GastosOperativos[[#This Row],[Actual período]]<GastosOperativos[[#This Row],[Presupuesto]],GastosOperativos[[#This Row],[Presupuesto]]<0),-((GastosOperativos[[#This Row],[Actual período]]/GastosOperativos[[#This Row],[Presupuesto]])-1),(GastosOperativos[[#This Row],[Actual período]]/GastosOperativos[[#This Row],[Presupuesto]])-1))),\"-\")","v":{"v":0,"d":"0.00%"}}]
[null,null,"Generales y administrativos","Depreciación",{"$nulls":3},{"$f":"IFERROR(IF(Ingresos_Por_Ventas=0,\"-\",GastosOperativos[[#This Row],[Actual período]]/Ingresos_Por_Ventas),\"-\")","v":{"v":0,"d":"0.00%"}},{"$f":"IFERROR(IF(GastosOperativos[[#This Row],[Antes período]]=GastosOperativos[[#This Row],[Actual período]],0,IF(GastosOperativos[[#This Row],[Actual período]]>GastosOperativos[[#This Row],[Antes período]],ABS((GastosOperativos[[#This Row],[Actual período]]/GastosOperativos[[#This Row],[Antes período]])-1),IF(AND(GastosOperativos[[#This Row],[Actual período]]<GastosOperativos[[#This Row],[Antes período]],GastosOperativos[[#This Row],[Antes período]]<0),-((GastosOperativos[[#This Row],[Actual período]]/GastosOperativos[[#This Row],[Antes período]])-1),(GastosOperativos[[#This Row],[Actual período]]/GastosOperativos[[#This Row],[Antes período]])-1))),\"-\")","v":{"v":0,"d":"0.00%"}},{"$f":"IFERROR(IF(GastosOperativos[[#This Row],[Presupuesto]]=GastosOperativos[[#This Row],[Actual período]],0,IF(GastosOperativos[[#This Row],[Actual período]]>GastosOperativos[[#This Row],[Presupuesto]],ABS((GastosOperativos[[#This Row],[Actual período]]/GastosOperativos[[#This Row],[Presupuesto]])-1),IF(AND(GastosOperativos[[#This Row],[Actual período]]<GastosOperativos[[#This Row],[Presupuesto]],GastosOperativos[[#This Row],[Presupuesto]]<0),-((GastosOperativos[[#This Row],[Actual período]]/GastosOperativos[[#This Row],[Presupuesto]])-1),(GastosOperativos[[#This Row],[Actual período]]/GastosOperativos[[#This Row],[Presupuesto]])-1))),\"-\")","v":{"v":0,"d":"0.00%"}}]
[null,null,"Generales y administrativos","Seguro",{"$nulls":3},{"$f":"IFERROR(IF(Ingresos_Por_Ventas=0,\"-\",GastosOperativos[[#This Row],[Actual período]]/Ingresos_Por_Ventas),\"-\")","v":{"v":0,"d":"0.00%"}},{"$f":"IFERROR(IF(GastosOperativos[[#This Row],[Antes período]]=GastosOperativos[[#This Row],[Actual período]],0,IF(GastosOperativos[[#This Row],[Actual período]]>GastosOperativos[[#This Row],[Antes período]],ABS((GastosOperativos[[#This Row],[Actual período]]/GastosOperativos[[#This Row],[Antes período]])-1),IF(AND(GastosOperativos[[#This Row],[Actual período]]<GastosOperativos[[#This Row],[Antes período]],GastosOperativos[[#This Row],[Antes período]]<0),-((GastosOperativos[[#This Row],[Actual período]]/GastosOperativos[[#This Row],[Antes período]])-1),(GastosOperativos[[#This Row],[Actual período]]/GastosOperativos[[#This Row],[Antes período]])-1))),\"-\")","v":{"v":0,"d":"0.00%"}},{"$f":"IFERROR(IF(GastosOperativos[[#This Row],[Presupuesto]]=GastosOperativos[[#This Row],[Actual período]],0,IF(GastosOperativos[[#This Row],[Actual período]]>GastosOperativos[[#This Row],[Presupuesto]],ABS((GastosOperativos[[#This Row],[Actual período]]/GastosOperativos[[#This Row],[Presupuesto]])-1),IF(AND(GastosOperativos[[#This Row],[Actual período]]<GastosOperativos[[#This Row],[Presupuesto]],GastosOperativos[[#This Row],[Presupuesto]]<0),-((GastosOperativos[[#This Row],[Actual período]]/GastosOperativos[[#This Row],[Presupuesto]])-1),(GastosOperativos[[#This Row],[Actual período]]/GastosOperativos[[#This Row],[Presupuesto]])-1))),\"-\")","v":{"v":0,"d":"0.00%"}}]
[null,null,"Generales y administrativos","Reparaciones y mantenimiento",{"$nulls":3},{"$f":"IFERROR(IF(Ingresos_Por_Ventas=0,\"-\",GastosOperativos[[#This Row],[Actual período]]/Ingresos_Por_Ventas),\"-\")","v":{"v":0,"d":"0.00%"}},{"$f":"IFERROR(IF(GastosOperativos[[#This Row],[Antes período]]=GastosOperativos[[#This Row],[Actual período]],0,IF(GastosOperativos[[#This Row],[Actual período]]>GastosOperativos[[#This Row],[Antes período]],ABS((GastosOperativos[[#This Row],[Actual período]]/GastosOperativos[[#This Row],[Antes período]])-1),IF(AND(GastosOperativos[[#This Row],[Actual período]]<GastosOperativos[[#This Row],[Antes período]],GastosOperativos[[#This Row],[Antes período]]<0),-((GastosOperativos[[#This Row],[Actual período]]/GastosOperativos[[#This Row],[Antes período]])-1),(GastosOperativos[[#This Row],[Actual período]]/GastosOperativos[[#This Row],[Antes período]])-1))),\"-\")","v":{"v":0,"d":"0.00%"}},{"$f":"IFERROR(IF(GastosOperativos[[#This Row],[Presupuesto]]=GastosOperativos[[#This Row],[Actual período]],0,IF(GastosOperativos[[#This Row],[Actual período]]>GastosOperativos[[#This Row],[Presupuesto]],ABS((GastosOperativos[[#This Row],[Actual período]]/GastosOperativos[[#This Row],[Presupuesto]])-1),IF(AND(GastosOperativos[[#This Row],[Actual período]]<GastosOperativos[[#This Row],[Presupuesto]],GastosOperativos[[#This Row],[Presupuesto]]<0),-((GastosOperativos[[#This Row],[Actual período]]/GastosOperativos[[#This Row],[Presupuesto]])-1),(GastosOperativos[[#This Row],[Actual período]]/GastosOperativos[[#This Row],[Presupuesto]])-1))),\"-\")","v":{"v":0,"d":"0.00%"}}]
[null,null,"Generales y administrativos","Otros gastos (especifique)",{"$nulls":3},{"$f":"IFERROR(IF(Ingresos_Por_Ventas=0,\"-\",GastosOperativos[[#This Row],[Actual período]]/Ingresos_Por_Ventas),\"-\")","v":{"v":0,"d":"0.00%"}},{"$f":"IFERROR(IF(GastosOperativos[[#This Row],[Antes período]]=GastosOperativos[[#This Row],[Actual período]],0,IF(GastosOperativos[[#This Row],[Actual período]]>GastosOperativos[[#This Row],[Antes período]],ABS((GastosOperativos[[#This Row],[Actual período]]/GastosOperativos[[#This Row],[Antes período]])-1),IF(AND(GastosOperativos[[#This Row],[Actual período]]<GastosOperativos[[#This Row],[Antes período]],GastosOperativos[[#This Row],[Antes período]]<0),-((GastosOperativos[[#This Row],[Actual período]]/GastosOperativos[[#This Row],[Antes período]])-1),(GastosOperativos[[#This Row],[Actual período]]/GastosOperativos[[#This Row],[Antes período]])-1))),\"-\")","v":{"v":0,"d":"0.00%"}},{"$f":"IFERROR(IF(GastosOperativos[[#This Row],[Presupuesto]]=GastosOperativos[[#This Row],[Actual período]],0,IF(GastosOperativos[[#This Row],[Actual período]]>GastosOperativos[[#This Row],[Presupuesto]],ABS((GastosOperativos[[#This Row],[Actual período]]/GastosOperativos[[#This Row],[Presupuesto]])-1),IF(AND(GastosOperativos[[#This Row],[Actual período]]<GastosOperativos[[#This Row],[Presupuesto]],GastosOperativos[[#This Row],[Presupuesto]]<0),-((GastosOperativos[[#This Row],[Actual período]]/GastosOperativos[[#This Row],[Presupuesto]])-1),(GastosOperativos[[#This Row],[Actual período]]/GastosOperativos[[#This Row],[Presupuesto]])-1))),\"-\")","v":{"v":0,"d":"0.00%"}}]
[null,null,"Generales y administrativos","Otros gastos (especificar)",{"$nulls":3},{"$f":"IFERROR(IF(Ingresos_Por_Ventas=0,\"-\",GastosOperativos[[#This Row],[Actual período]]/Ingresos_Por_Ventas),\"-\")","v":{"v":0,"d":"0.00%"}},{"$f":"IFERROR(IF(GastosOperativos[[#This Row],[Antes período]]=GastosOperativos[[#This Row],[Actual período]],0,IF(GastosOperativos[[#This Row],[Actual período]]>GastosOperativos[[#This Row],[Antes período]],ABS((GastosOperativos[[#This Row],[Actual período]]/GastosOperativos[[#This Row],[Antes período]])-1),IF(AND(GastosOperativos[[#This Row],[Actual período]]<GastosOperativos[[#This Row],[Antes período]],GastosOperativos[[#This Row],[Antes período]]<0),-((GastosOperativos[[#This Row],[Actual período]]/GastosOperativos[[#This Row],[Antes período]])-1),(GastosOperativos[[#This Row],[Actual período]]/GastosOperativos[[#This Row],[Antes período]])-1))),\"-\")","v":{"v":0,"d":"0.00%"}},{"$f":"IFERROR(IF(GastosOperativos[[#This Row],[Presupuesto]]=GastosOperativos[[#This Row],[Actual período]],0,IF(GastosOperativos[[#This Row],[Actual período]]>GastosOperativos[[#This Row],[Presupuesto]],ABS((GastosOperativos[[#This Row],[Actual período]]/GastosOperativos[[#This Row],[Presupuesto]])-1),IF(AND(GastosOperativos[[#This Row],[Actual período]]<GastosOperativos[[#This Row],[Presupuesto]],GastosOperativos[[#This Row],[Presupuesto]]<0),-((GastosOperativos[[#This Row],[Actual período]]/GastosOperativos[[#This Row],[Presupuesto]])-1),(GastosOperativos[[#This Row],[Actual período]]/GastosOperativos[[#This Row],[Presupuesto]])-1))),\"-\")","v":{"v":0,"d":"0.00%"}}]
[null,null,"Gastos operativos totales",null,{"$f":"SUBTOTAL(109,GastosOperativos[Antes período])","v":{"v":30,"d":"30.00 €"}},{"$f":"SUBTOTAL(109,GastosOperativos[Presupuesto])","v":{"v":35,"d":"35.00 €"}},{"$f":"SUBTOTAL(109,GastosOperativos[Actual período])","v":{"v":45,"d":"45.00 €"}},{"$f":"SUBTOTAL(109,GastosOperativos[Período actual como % de ventas])","v":{"v":0.45,"d":"45.00%"}},{"$f":"SUBTOTAL(109,GastosOperativos[Porcentaje de cambio desde período anterior])","v":{"v":0.5,"d":"50.00%"}},{"$f":"SUBTOTAL(109,GastosOperativos[% de cambio del presupuesto])","v":{"v":0.2857142857142858,"d":"28.57%"}}]

{"sheet":"Impuestos","index":4,"n_rows":13,"n_cols":10,"rows_kept":13}
[]
[]
[null,null,{"$f":"Título_Libro","v":"BALANCE DE PÉRDIDAS Y GANANCIAS"},{"$nulls":5},"Impuestos"]
[null,null,{"$f":"Nombre_de_la_compañía","v":"CELULAR SATCOM"},{"$nulls":5},"Expresado en millares",{"$f":"IFERROR(Impuestos[[#Totals],[Actual período]],\"-\")","v":{"v":12,"d":"12.00 €"}}]
[]
[]
[null,null,"Tipo","Descripción","Antes período","Presupuesto","Actual período","Período actual como % de ventas","Porcentaje de cambio desde el período anterior","% de cambio del presupuesto"]
[null,null,"Impuestos","Impuestos sobre la renta",{"v":10,"d":"10.00 €"},{"v":12,"d":"12.00 €"},{"v":12,"d":"12.00 €"},{"$f":"IFERROR(IF(Ingresos_Por_Ventas=0,\"-\",Impuestos[[#This Row],[Actual período]]/Ingresos_Por_Ventas),\"-\")","v":{"v":0.12,"d":"12.00%"}},{"$f":"IFERROR(IF(Impuestos[[#This Row],[Antes período]]=Impuestos[[#This Row],[Actual período]],0,IF(Impuestos[[#This Row],[Actual período]]>Impuestos[[#This Row],[Antes período]],ABS((Impuestos[[#This Row],[Actual período]]/Impuestos[[#This Row],[Antes período]])-1),IF(AND(Impuestos[[#This Row],[Actual período]]<Impuestos[[#This Row],[Antes período]],Impuestos[[#This Row],[Antes período]]<0),-((Impuestos[[#This Row],[Actual período]]/Impuestos[[#This Row],[Antes período]])-1),(Impuestos[[#This Row],[Actual período]]/Impuestos[[#This Row],[Antes período]])-1))),\"-\")","v":{"v":0.19999999999999996,"d":"20.00%"}},{"$f":"IFERROR(IF(Impuestos[[#This Row],[Presupuesto]]=Impuestos[[#This Row],[Actual período]],0,IF(Impuestos[[#This Row],[Actual período]]>Impuestos[[#This Row],[Presupuesto]],ABS((Impuestos[[#This Row],[Actual período]]/Impuestos[[#This Row],[Presupuesto]])-1),IF(AND(Impuestos[[#This Row],[Actual período]]<Impuestos[[#This Row],[Presupuesto]],Impuestos[[#This Row],[Presupuesto]]<0),-((Impuestos[[#This Row],[Actual período]]/Impuestos[[#This Row],[Presupuesto]])-1),(Impuestos[[#This Row],[Actual período]]/Impuestos[[#This Row],[Presupuesto]])-1))),\"-\")","v":{"v":0,"d":"0.00%"}}]
[null,null,"Impuestos","Impuestos sobre nóminas",{"$nulls":3},{"$f":"IFERROR(IF(Ingresos_Por_Ventas=0,\"-\",Impuestos[[#This Row],[Actual período]]/Ingresos_Por_Ventas),\"-\")","v":{"v":0,"d":"0.00%"}},{"$f":"IFERROR(IF(Impuestos[[#This Row],[Antes período]]=Impuestos[[#This Row],[Actual período]],0,IF(Impuestos[[#This Row],[Actual período]]>Impuestos[[#This Row],[Antes período]],ABS((Impuestos[[#This Row],[Actual período]]/Impuestos[[#This Row],[Antes período]])-1),IF(AND(Impuestos[[#This Row],[Actual período]]<Impuestos[[#This Row],[Antes período]],Impuestos[[#This Row],[Antes período]]<0),-((Impuestos[[#This Row],[Actual período]]/Impuestos[[#This Row],[Antes período]])-1),(Impuestos[[#This Row],[Actual período]]/Impuestos[[#This Row],[Antes período]])-1))),\"-\")","v":{"v":0,"d":"0.00%"}},{"$f":"IFERROR(IF(Impuestos[[#This Row],[Presupuesto]]=Impuestos[[#This Row],[Actual período]],0,IF(Impuestos[[#This Row],[Actual período]]>Impuestos[[#This Row],[Presupuesto]],ABS((Impuestos[[#This Row],[Actual período]]/Impuestos[[#This Row],[Presupuesto]])-1),IF(AND(Impuestos[[#This Row],[Actual período]]<Impuestos[[#This Row],[Presupuesto]],Impuestos[[#This Row],[Presupuesto]]<0),-((Impuestos[[#This Row],[Actual período]]/Impuestos[[#This Row],[Presupuesto]])-1),(Impuestos[[#This Row],[Actual período]]/Impuestos[[#This Row],[Presupuesto]])-1))),\"-\")","v":{"v":0,"d":"0.00%"}}]
[null,null,"Impuestos","Impuestos sobre bienes inmuebles",{"$nulls":3},{"$f":"IFERROR(IF(Ingresos_Por_Ventas=0,\"-\",Impuestos[[#This Row],[Actual período]]/Ingresos_Por_Ventas),\"-\")","v":{"v":0,"d":"0.00%"}},{"$f":"IFERROR(IF(Impuestos[[#This Row],[Antes período]]=Impuestos[[#This Row],[Actual período]],0,IF(Impuestos[[#This Row],[Actual período]]>Impuestos[[#This Row],[Antes período]],ABS((Impuestos[[#This Row],[Actual período]]/Impuestos[[#This Row],[Antes período]])-1),IF(AND(Impuestos[[#This Row],[Actual período]]<Impuestos[[#This Row],[Antes período]],Impuestos[[#This Row],[Antes período]]<0),-((Impuestos[[#This Row],[Actual período]]/Impuestos[[#This Row],[Antes período]])-1),(Impuestos[[#This Row],[Actual período]]/Impuestos[[#This Row],[Antes período]])-1))),\"-\")","v":{"v":0,"d":"0.00%"}},{"$f":"IFERROR(IF(Impuestos[[#This Row],[Presupuesto]]=Impuestos[[#This Row],[Actual período]],0,IF(Impuestos[[#This Row],[Actual período]]>Impuestos[[#This Row],[Presupuesto]],ABS((Impuestos[[#This Row],[Actual período]]/Impuestos[[#This Row],[Presupuesto]])-1),IF(AND(Impuestos[[#This Row],[Actual período]]<Impuestos[[#This Row],[Presupuesto]],Impuestos[[#This Row],[Presupuesto]]<0),-((Impuestos[[#This Row],[Actual período]]/Impuestos[[#This Row],[Presupuesto]])-1),(Impuestos[[#This Row],[Actual período]]/Impuestos[[#This Row],[Presupuesto]])-1))),\"-\")","v":{"v":0,"d":"0.00%"}}]
[null,null,"Impuestos","Otros impuestos (especifique)",{"$nulls":3},{"$f":"IFERROR(IF(Ingresos_Por_Ventas=0,\"-\",Impuestos[[#This Row],[Actual período]]/Ingresos_Por_Ventas),\"-\")","v":{"v":0,"d":"0.00%"}},{"$f":"IFERROR(IF(Impuestos[[#This Row],[Antes período]]=Impuestos[[#This Row],[Actual período]],0,IF(Impuestos[[#This Row],[Actual período]]>Impuestos[[#This Row],[Antes período]],ABS((Impuestos[[#This Row],[Actual período]]/Impuestos[[#This Row],[Antes período]])-1),IF(AND(Impuestos[[#This Row],[Actual período]]<Impuestos[[#This Row],[Antes período]],Impuestos[[#This Row],[Antes período]]<0),-((Impuestos[[#This Row],[Actual período]]/Impuestos[[#This Row],[Antes período]])-1),(Impuestos[[#This Row],[Actual período]]/Impuestos[[#This Row],[Antes período]])-1))),\"-\")","v":{"v":0,"d":"0.00%"}},{"$f":"IFERROR(IF(Impuestos[[#This Row],[Presupuesto]]=Impuestos[[#This Row],[Actual período]],0,IF(Impuestos[[#This Row],[Actual período]]>Impuestos[[#This Row],[Presupuesto]],ABS((Impuestos[[#This Row],[Actual período]]/Impuestos[[#This Row],[Presupuesto]])-1),IF(AND(Impuestos[[#This Row],[Actual período]]<Impuestos[[#This Row],[Presupuesto]],Impuestos[[#This Row],[Presupuesto]]<0),-((Impuestos[[#This Row],[Actual período]]/Impuestos[[#This Row],[Presupuesto]])-1),(Impuestos[[#This Row],[Actual período]]/Impuestos[[#This Row],[Presupuesto]])-1))),\"-\")","v":{"v":0,"d":"0.00%"}}]
[null,null,"Impuestos","Otros impuestos (especifique)",{"$nulls":3},{"$f":"IFERROR(IF(Ingresos_Por_Ventas=0,\"-\",Impuestos[[#This Row],[Actual período]]/Ingresos_Por_Ventas),\"-\")","v":{"v":0,"d":"0.00%"}},{"$f":"IFERROR(IF(Impuestos[[#This Row],[Antes período]]=Impuestos[[#This Row],[Actual período]],0,IF(Impuestos[[#This Row],[Actual período]]>Impuestos[[#This Row],[Antes período]],ABS((Impuestos[[#This Row],[Actual período]]/Impuestos[[#This Row],[Antes período]])-1),IF(AND(Impuestos[[#This Row],[Actual período]]<Impuestos[[#This Row],[Antes período]],Impuestos[[#This Row],[Antes período]]<0),-((Impuestos[[#This Row],[Actual período]]/Impuestos[[#This Row],[Antes período]])-1),(Impuestos[[#This Row],[Actual período]]/Impuestos[[#This Row],[Antes período]])-1))),\"-\")","v":{"v":0,"d":"0.00%"}},{"$f":"IFERROR(IF(Impuestos[[#This Row],[Presupuesto]]=Impuestos[[#This Row],[Actual período]],0,IF(Impuestos[[#This Row],[Actual período]]>Impuestos[[#This Row],[Presupuesto]],ABS((Impuestos[[#This Row],[Actual período]]/Impuestos[[#This Row],[Presupuesto]])-1),IF(AND(Impuestos[[#This Row],[Actual período]]<Impuestos[[#This Row],[Presupuesto]],Impuestos[[#This Row],[Presupuesto]]<0),-((Impuestos[[#This Row],[Actual período]]/Impuestos[[#This Row],[Presupuesto]])-1),(Impuestos[[#This Row],[Actual período]]/Impuestos[[#This Row],[Presupuesto]])-1))),\"-\")","v":{"v":0,"d":"0.00%"}}]
[null,null,"Total de impuestos",null,{"$f":"SUBTOTAL(109,Impuestos[Antes período])","v":{"v":10,"d":"10.00 €"}},{"$f":"SUBTOTAL(109,Impuestos[Presupuesto])","v":{"v":12,"d":"12.00 €"}},{"$f":"SUBTOTAL(109,Impuestos[Actual período])","v":{"v":12,"d":"12.00 €"}},{"$f":"IFERROR(SUBTOTAL(109,Impuestos[Período actual como % de ventas]),\"-\")","v":{"v":0.12,"d":"12.00%"}},{"$f":"SUBTOTAL(109,Impuestos[Porcentaje de cambio desde el período anterior])","v":{"v":0.19999999999999996,"d":"20.00%"}},{"$f":"SUBTOTAL(109,Impuestos[% de cambio del presupuesto])","v":{"v":0,"d":"0.00%"}}]

{"sheet":"Categorías","index":5,"n_rows":13,"n_cols":3,"rows_kept":13}
[]
[]
[null,null,{"$f":"Título_Libro","v":"BALANCE DE PÉRDIDAS Y GANANCIAS"}]
[null,null,{"$f":"Nombre_de_la_compañía","v":"CELULAR SATCOM"}]
[]
[null,null,"Categorías"]
[null,null,"Ingresos por ventas"]
[null,null,"Costo de ventas"]
[null,null,"Ingresos"]
[null,null,"Ventas y marketing"]
[null,null,"Investigación y desarrollo"]
[null,null,"Generales y administrativos"]
[null,null,"Impuestos"]